[Event "15th Chennai GM Open 2025"]
[Site "Chennai"]
[Date "2025.01.04"]
[Round "4.8"]
[White "Deepan Chakkravarthy J."]
[Black "Adireddy Arjun"]
[Result "1/2-1/2"]
[ECO "D27"]
[WhiteElo "2413"]
[BlackElo "2326"]
[Annotator "TA"]
[PlyCount "94"]
[EventDate "2025.01.02"]
[EventType "swiss"]
[EventCountry "IND"]
[SourceTitle "playchess.com"]
[Source "ChessBase"]
[SourceQuality "1"]
[TimeControl "5400+30"]

{[%evp 21,94,11,19,-11,0,4,4,0,0,0,0,0,0,-21,-17,-9,0,-63,-63,-65,-65,-70,0,-97,-112,-85,-84,-187,-193,-378,-359,-362,-252,-255,-243,-326,-241,-311,-235,-218,-77,-75,-91,-91,-105,-131,-131,-131,-148,-175,-123,-103,-96,-101,-119,-133,-50,-46,-46,-33,-36,-80,-80,-90,-55,-53,-60,-46,0,0,0,-9,0,-73,0]} 1. d4 {[%emt 0:00:13]} Nf6 {[%emt 0:00:33]} 2. c4 {[%emt 0:00:06]} e6 {[%emt 0:00:04]} 3. Nf3 {[%emt 0:01:27]} d5 {[%emt 0:00:06]} 4. Nc3 {[%emt 0:00:13]} dxc4 {[%emt 0:00:04]} 5. e3 {[%emt 0:00:21]} a6 {[%emt 0:00:05]} 6. a4 {[%emt 0:04:40]} c5 {[%emt 0:01:53]} 7. Bxc4 {[%emt 0:00:06]} Be7 {[%emt 0:01:40]} 8. O-O {[%emt 0:00:07]} O-O {[%emt 0:00:07]} 9. Qe2 {[%emt 0:12:43]} Nc6 {[%emt 0:02:03]} 10. Rd1 {[%emt 0:00:15]} Qc7 {[%emt 0:04:48]} 11. dxc5 {[%emt 0:11:07]} Bxc5 {[%emt 0:00:41]} 12. h3 {[%emt 0:00:06]} Ne5 {[%emt 0:17:59]} 13. Nxe5 {[%emt 0:08:44]} Qxe5 {[%emt 0:00:09]} 14. Rb1 {[%emt 0:00:06][%cal Ob2b4] The position is equal.} Bd7 {[%emt 0:03:21]} 15. b4 {[%emt 0:11:20]} Bxb4 {[%emt 0:09:00]} (15... Qxc3 $2 16. Bb2 $18) 16. Rxb4 {[%emt 0:00:02]} Qxc3 $40 {[%emt 0:00:11][%mdl 128] Black has some attack.} 17. Rb3 {[%emt 0:21:23]} Qa5 {[%emt 0:00:30]} 18. Rxb7 {[%emt 0:00:14]} Bxa4 {[%emt 0:00:48]} 19. Rd6 {[%emt 0:01:38]} (19. Qa2 $11) 19... Qc5 $1 $15 {[%emt 0:07:46]} 20. Rd4 {[%emt 0:00:02] [#]} Bb5 $1 {[%emt 0:05:19]} 21. Bb2 {[%emt 0:05:41][%cal Rc4b5]} (21. Bxb5 Qxc1+) 21... Qc6 {[%emt 0:21:09]} (21... e5 $15 22. Rh4 Rab8 23. Rxb8 (23. Bxf7+ $2 Kh8 $19) 23... Rxb8) 22. Rg4 {[%emt 0:05:12]} g6 $17 {[%emt 0:16:32]} (22... Qxb7 23. Rxg7+ Kxg7 24. Qg4+ Kh6 25. Qf4+ Kh5 26. Qe5+ (26. Bxf6 Qxg2+ 27. Kxg2 Rg8+ 28. Kh2 h6) 26... Kh6 27. Qxf6+ Kh5 28. g4#) 23. Rxb5 {[%emt 0:00:05] Rb4 would now be deadly.} Nxg4 {[%emt 0:00:13]} (23... axb5 $2 24. Bxb5 $18 (24. Bxf6 bxc4 25. Rxc4 Qd5 $17) (24. Bxf6 bxc4 25. Rxc4 Qb5 $11)) 24. Rg5 {[%emt 0:02:53]} (24. Rb3 $17 {might work better.} Nh6 25. e4) 24... Nh6 $19 {[%emt 0:00:21]} 25. Qh5 $2 {[%emt 0:00:39]} (25. Ra5) 25... Nf5 {[%emt 0:02:53]} 26. Rxf5 {[%emt 0:00:10]} Qb6 {[%emt 0:02:52]} (26... gxh5 27. Rg5#) (26... exf5 27. Qh6) 27. Rxf7 {[%emt 0:05:56]} gxh5 {[%emt 0:00:06]} 28. Rg7+ {[%emt 0:00:28]} Kh8 {[%emt 0:00:01]} 29. Bc3 {[%emt 0:00:31] Strongly threatening Rg6+.} e5 {[%emt 0:03:14]} 30. Bxe5 {[%emt 0:00:08][%csl Gc4][%cal Rg7g8] [#] This pair of bishops is nice.} Qf6 $3 {[%emt 0:00:31]} 31. Bxf6 $17 {[%emt 0:03:46]} Rxf6 {[%emt 0:00:01][%mdl 4096] Endgame. KRR-KRB} 32. Rd7 {[%emt 0:00:09]} a5 {[%emt 0:00:58]} 33. Bd5 {[%emt 0:00:02] [#]} Raa6 {[%emt 0:00:30]} 34. Rd8+ {[%emt 0:05:52]} Kg7 {[%emt 0:00:01]} 35. f4 {[%emt 0:00:32]} Rf8 {[%emt 0:00:58]} (35... a4 $19 {aiming for ...a3.} 36. Rd7+ Kf8 (36... Kh6 37. Be4 $11) 37. Rxh7 a3) 36. Rd7+ {[%emt 0:00:06]} Kh8 {[%emt 0:00:18] White must now prevent ...a4.} 37. Bc4 {[%emt 0:01:24] [#]} Raa8 {[%emt 0:00:28] ...Rfd8 is the strong threat.} 38. Bd3 {[%emt 0:00:26]} Rad8 {[%emt 0:00:46]} (38... Rfd8 $17 39. Rxh7+ Kg8) 39. Rxh7+ $15 {[%emt 0:00:26]} Kg8 {[%emt 0:00:01]} 40. Bc2 {[%emt 0:00:39]} Rc8 {[%emt 0:00:37][%mdl 1024] Black has compensation.} 41. Bd3 {[%emt 0:00:29]} Rc3 {[%emt 0:00:52]} 42. Bg6 {[%emt 0:00:17]} Rc6 {[%emt 0:00:28]} 43. Be4 {[%emt 0:00:43][%cal Oh7d7]} Re6 {[%emt 0:00:30]} 44. Bc2 {[%emt 0:00:06]} Rc6 {[%emt 0:00:31]} (44... Rc8 $15 45. Bf5 Rxe3) 45. Be4 $1 $11 {[%emt 0:00:01]} Rc4 {[%emt 0:00:31]} 46. Bd3 {[%emt 0:00:01]} Rc3 {[%emt 0:00:16]} (46... Ra8 $11) 47. Bg6 $17 {[%emt 0:00:01]} Rc6 {[%emt 0:00:34] White happily takes the draw.   Weighted Error Value: White=0.22 (precise) /Black=0.23 (precise) .  Mistake:       	White=4     	Black=7      Inaccurate:     	White=1     	Black=2      OK:         	White=12    	Black=12     Best:        	White=5     	Black=8      Strong:       	White=1     	Black=1} (47... Rxe3 $17 48. f5 a4) 1/2-1/2

[Event "15th Chennai GM Open 2025"]
[Site "Chennai"]
[Date "2025.01.04"]
[Round "4.9"]
[White "Dhananjay S"]
[Black "Sanket Chakravarty"]
[Result "1/2-1/2"]
[ECO "B53"]
[WhiteElo "2270"]
[BlackElo "2374"]
[Annotator "TA"]
[PlyCount "80"]
[EventDate "2025.01.02"]
[EventType "swiss"]
[EventCountry "IND"]
[SourceTitle "playchess.com"]
[Source "ChessBase"]
[SourceQuality "1"]
[TimeControl "5400+30"]

{[%evp 9,80,16,15,4,40,21,28,10,24,8,9,13,0,0,35,-23,-7,-6,6,-6,-17,-5,-18,-33,-43,-22,-15,-28,-18,-28,-31,-28,-32,-58,-54,-59,-44,-51,-45,-41,-52,-92,-58,-44,-55,-59,-22,-29,-26,-77,-77,-80,-72,-50,-63,-58,-69,-66,-46,-44,-3,-5,0,0,0,0,0,0,0,0,0,0,0]} 1. e4 {[%emt 0:00:03]} c5 {[%emt 0:04:23]} 2. Nf3 {[%emt 0:00:08]} d6 {[%emt 0:00:12]} 3. d4 {[%emt 0:02:04]} cxd4 {[%emt 0:00:15]} 4. Qxd4 {[%emt 0:00:05]} Nc6 {[%emt 0:00:29]} 5. Qe3 {[%emt 0:00:06]} g6 {[%emt 0:00:21]} 6. Be2 {[%emt 0:00:09]} Bg4 {[%emt 0:00:32]} 7. O-O {[%emt 0:01:41]} Bg7 {[%emt 0:01:16]} 8. Rd1 {[%emt 0:01:37]} Qb6 {[%emt 0:05:29]} 9. Qxb6 {[%emt 0:07:16]} axb6 {[%emt 0:00:07]} 10. c3 {[%emt 0:00:26]} Nf6 {[%emt 0:02:02]} 11. Nbd2 {[%emt 0:01:20]} Nd7 {[%emt 0:00:29] [#]} 12. Nd4 {[%emt 0:27:18]} Bxe2 $11 {[%emt 0:08:07]} 13. Nxe2 {[%emt 0:00:16]} b5 {[%emt 0:04:56]} 14. a3 {[%emt 0:08:33] [#]} b4 $1 {[%emt 0:01:06]} 15. cxb4 {[%emt 0:01:40]} Nxb4 {[%emt 0:00:18]} 16. Nb3 {[%emt 0:00:07]} Nc6 {[%emt 0:05:26]} 17. Rb1 {[%emt 0:06:54]} O-O {[%emt 0:04:15]} 18. Bd2 {[%emt 0:03:29]} b5 {[%emt 0:03:21][%cal Bb7b5,Bb5b4][%mdl 32]} 19. Rdc1 {[%emt 0:09:34]} Rfc8 {[%emt 0:05:42]} 20. Rc2 {[%emt 0:07:18]} Nde5 {[%emt 0:11:03]} 21. Nc3 {[%emt 0:09:35]} Rab8 {[%emt 0:10:35]} 22. Na2 {[%emt 0:04:04]} Nd3 {[%emt 0:00:41][%cal Od3c5]} 23. Bc3 {[%emt 0:00:37]} b4 {[%emt 0:02:47]} 24. Bxg7 {[%emt 0:00:52]} Kxg7 {[%emt 0:01:49]} 25. Rd1 {[%emt 0:00:20]} Nce5 {[%emt 0:01:34]} (25... bxa3 {with more complications.} 26. Rxd3 Ne5 27. Rxc8 Rxc8 28. Rd1 axb2 29. Nd2 Nd3) 26. Rxc8 {[%emt 0:00:51]} Rxc8 {[%emt 0:00:01]} 27. Nxb4 {[%emt 0:00:42]} Nxb4 {[%emt 0:00:55]} 28. axb4 $15 {[%emt 0:00:04][%mdl 4096] Endgame KRN-KRN. White is a pawn up.} Rb8 {[%emt 0:00:10]} 29. Nd4 {[%emt 0:04:10]} (29. Rd4 $11 {keeps the balance.}) 29... Rxb4 $17 {[%emt 0:00:39][%cal Bb8b4,Bb4e4,Be4e3,Be3b3,Bb3b2][%mdl 32]} 30. b3 {[%emt 0:00:06]} Nd7 {[%emt 0:00:27]} 31. Nc6 {[%emt 0:02:38][%csl LRb4,LRe7]} Rxe4 {[%emt 0:00:51]} 32. f3 {[%emt 0:00:02]} Re3 {[%emt 0:03:36][%cal Og7f6]} 33. Kf2 $1 {[%emt 0:00:05]} Rxb3 {[%emt 0:00:04] aiming for ...Kf6.} 34. Nxe7 {[%emt 0:00:03]} Rb2+ {[%emt 0:00:06]} 35. Kf1 {[%emt 0:00:35]} Ne5 {[%emt 0:04:35]} 36. Rxd6 {[%emt 0:00:15]} Rb7 {[%emt 0:00:13]} 37. Nd5 {[%emt 0:02:33]} Rb1+ {[%emt 0:00:07]} 38. Kf2 {[%emt 0:00:05]} Rb2+ {[%emt 0:00:15]} 39. Kg3 {[%emt 0:00:14]} Rd2 {[%emt 0:00:07]} 40. Nf6 {[%emt 0:00:06] and Ne8+ would now be decisive} Rxd6 {[%emt 0:02:07]} 1/2-1/2

[Event "15th Chennai GM Open 2025"]
[Site "Chennai"]
[Date "2025.01.04"]
[Round "4.10"]
[White "Nguyen, Duc Hoa"]
[Black "Mayukh Majumder"]
[Result "1/2-1/2"]
[ECO "B56"]
[WhiteElo "2358"]
[BlackElo "2013"]
[Annotator "TA"]
[PlyCount "96"]
[EventDate "2025.01.02"]
[EventType "swiss"]
[EventCountry "IND"]
[SourceTitle "playchess.com"]
[Source "ChessBase"]
[SourceQuality "1"]
[TimeControl "5400+30"]

{[%evp 14,96,20,22,25,14,29,31,25,26,23,13,16,15,11,4,10,5,25,-22,-28,-825,0,3,5,5,4,4,8,0,0,-9,0,0,0,0,11,5,6,9,7,8,6,9,8,0,3,11,76,68,82,75,84,21,21,28,25,14,16,0,0,0,0,0,0,0,0,0,0,0,0,0,0,0,0,0,0,0,0,0,0,0,0,0,0]} 1. e4 {[%emt 0:00:12]} c5 {[%emt 0:00:15]} 2. Nf3 {[%emt 0:00:11]} d6 {[%emt 0:00:15]} 3. d4 {[%emt 0:00:27]} cxd4 {[%emt 0:00:09]} 4. Nxd4 {[%emt 0:00:04]} Nf6 {[%emt 0:00:10]} 5. Nc3 {[%emt 0:00:11]} Nc6 {[%emt 0:00:12]} 6. f3 {[%emt 0:02:05]} e5 {[%emt 0:00:14]} 7. Nb3 {[%emt 0:02:26]} Be6 {[%emt 0:00:06]} 8. Be3 {[%emt 0:02:16]} d5 {[%emt 0:00:08]} 9. exd5 {[%emt 0:00:12]} Nxd5 {[%emt 0:00:06]} 10. Nxd5 {[%emt 0:00:08]} Qxd5 {[%emt 0:00:05]} 11. Qxd5 {[%emt 0:00:57]} Bxd5 {[%emt 0:01:53]} 12. O-O-O {[%emt 0:00:04]} O-O-O {[%emt 0:01:16]} 13. Bb5 {[%emt 0:03:55]} a6 {[%emt 0:00:08]} 14. Bxc6 {[%emt 0:00:52]} Bxc6 {[%emt 0:00:14]} 15. Na5 {[%emt 0:01:32]} Rd6 {[%emt 0:00:57]} 16. Rd2 (16. Rxd6 $142 Bxd6 17. Nxc6 bxc6 18. Rd1) 16... Rxd2 $11 {[%emt 0:00:31]} 17. Rf1 $2 {[%emt 0:00:08][%mdl 8192] [#]} (17. Bxd2 $11 Bd5 18. Nb3) 17... Rd1+ $2 18. Rxd1 {[%emt 0:01:00]} Bb5 {[%emt 0:01:17]} 19. c4 {[%emt 0:02:18]} Be8 {[%emt 0:00:20]} 20. Bb6 {[%emt 0:07:03]} Be7 {[%emt 0:00:32] Against Rd8+} 21. Kc2 {[%emt 0:07:58]} Bd7 {[%emt 0:04:46]} 22. Kc3 {[%emt 0:00:27][%cal Oa5b7]} Be6 {[%emt 0:12:55]} 23. c5 {[%emt 0:00:43]} f5 {[%emt 0:02:12]} 24. Nc4 {[%emt 0:00:19]} Bxc4 {[%emt 0:04:24]} 25. Kxc4 {[%emt 0:00:06][%mdl 4096] Endgame KRB-KRB} Bf6 {[%emt 0:00:22]} 26. Ba5 {[%emt 0:24:45]} e4 {[%emt 0:05:31]} 27. fxe4 {[%emt 0:08:59]} fxe4 {[%emt 0:00:26]} 28. b3 {[%emt 0:01:47]} Re8 {[%emt 0:01:11]} 29. h3 {[%emt 0:03:22]} Bh4 {[%emt 0:06:33]} 30. Be1 {[%emt 0:00:05]} Bxe1 {[%emt 0:00:12]} (30... Bg5 $11) 31. Rxe1 {[%emt 0:00:04] KR-KR} Kc7 {[%emt 0:00:08] [#]} 32. Re3 $1 {[%emt 0:00:43]} Kc6 {[%emt 0:00:31]} 33. b4 {[%emt 0:00:09]} (33. a3 $16) 33... b6 $1 {[%emt 0:01:01]} 34. cxb6 {[%emt 0:00:31]} Kxb6 {[%emt 0:00:06]} 35. g4 {[%emt 0:00:57]} Rc8+ $1 {[%emt 0:02:04]} (35... a5 36. bxa5+ Kxa5 37. Kd4 $14) 36. Kd5 {[%emt 0:00:49]} Kb5 {[%emt 0:00:27]} 37. a3 {[%emt 0:01:49]} (37. Kxe4 Re8+ 38. Kf4 Rxe3 39. Kxe3 Kxb4 $19) 37... Rf8 {[%emt 0:01:01]} 38. h4 {[%emt 0:14:11][%cal Oh4h5]} Rf4 {[%emt 0:00:39]} 39. Rxe4 {[%emt 0:01:13]} Rxe4 {[%emt 0:00:07]} 40. Kxe4 {[%emt 0:00:02] KP-KP. White is a pawn up.} Ka4 {[%emt 0:00:05]} 41. Kd4 {[%emt 0:00:55] Threatens to win with Kc4.} Kxa3 {[%emt 0:00:12] K3P-K3P} 42. Kc3 {[%emt 0:00:09]} g6 {[%emt 0:06:34]} 43. Kc4 {[%emt 0:02:14]} (43. g5 $5 {[%cal Rc3c4]} Ka2 44. Kc2 $11) 43... Kb2 {[%emt 0:01:40]} 44. h5 {[%emt 0:02:58]} gxh5 {[%emt 0:01:04]} 45. gxh5 {[%emt 0:00:04]} h6 {[%emt 0:00:07]} 46. b5 {[%emt 0:00:23]} axb5+ {[%emt 0:00:04]} 47. Kxb5 {[%emt 0:00:04]} Kb3 {[%emt 0:00:10]} 48. Kc5 {[%emt 0:00:08]} Ka4 {[%emt 0:00:07]} 1/2-1/2

[Event "15th Chennai GM Open 2025"]
[Site "Chennai"]
[Date "2025.01.04"]
[Round "4.11"]
[White "Podolchenko, Evgeniy"]
[Black "Karthikeyan, P.."]
[Result "1-0"]
[ECO "D45"]
[WhiteElo "2346"]
[BlackElo "2286"]
[Annotator "TA"]
[PlyCount "91"]
[EventDate "2025.01.02"]
[EventType "swiss"]
[EventCountry "IND"]
[SourceTitle "playchess.com"]
[Source "ChessBase"]
[SourceQuality "1"]
[TimeControl "5400+30"]

{[%evp 14,91,-6,-24,0,-24,-7,-19,0,7,34,53,42,42,60,74,51,59,77,50,74,68,74,70,77,77,84,77,86,61,88,67,161,76,141,65,134,154,145,133,220,210,214,177,185,168,197,182,208,209,341,337,338,350,345,342,385,356,456,455,442,362,434,406,458,472,721,722,677,499,29978,29971,5202,2423,29980,1235,1438,1248,1364,1341]} 1. d4 {[%emt 0:01:00]} d5 {[%emt 0:02:09]} 2. c4 {[%emt 0:00:07]} e6 {[%emt 0:00:08]} 3. Nc3 {[%emt 0:00:05]} c6 {[%emt 0:00:09]} 4. e3 {[%emt 0:03:54]} Nf6 {[%emt 0:01:03]} 5. Nf3 {[%emt 0:00:25]} Nbd7 {[%emt 0:00:18]} 6. Qc2 {[%emt 0:00:07]} Bd6 {[%emt 0:03:24]} 7. Bd2 {[%emt 0:04:21]} O-O {[%emt 0:01:08]} 8. O-O-O {[%emt 0:04:10]} Bb4 {[%emt 0:04:03]} 9. Kb1 {[%emt 0:07:00][%cal Oc3d5]} a5 {[%emt 0:01:39]} 10. Rg1 {[%emt 0:06:28]} Bxc3 {[%emt 0:11:11]} 11. Bxc3 {[%emt 0:00:45]} b5 {[%emt 0:04:26]} 12. cxb5 {[%emt 0:08:13]} cxb5 {[%emt 0:01:00]} 13. Bxb5 {[%emt 0:00:09]} Ba6 {[%emt 0:03:35]} 14. Bxa6 {[%emt 0:06:37]} Rxa6 {[%emt 0:00:02]} 15. Ne5 {[%emt 0:00:37]} Qa8 {[%emt 0:04:50]} 16. f3 {[%emt 0:02:21] White has more active pieces.} Rc8 {[%emt 0:01:07]} 17. Qe2 {[%emt 0:10:34]} Nb6 {[%emt 0:20:57]} 18. Rc1 {[%emt 0:03:00]} Nfd7 {[%emt 0:00:02]} 19. Nd3 {[%emt 0:01:58]} Nc4 {[%emt 0:01:46]} 20. Ka1 {[%emt 0:04:15]} Rac6 {[%emt 0:03:15]} 21. e4 {[%emt 0:01:35]} Qa7 {[%emt 0:03:48]} 22. Rge1 {[%emt 0:02:58]} Qc7 {[%emt 0:07:31] [#]} (22... Ncb6 $14) 23. Nc5 {[%emt 0:05:28]} h6 {[%emt 0:03:37]} (23... Nxc5 $2 24. exd5 a4 (24... exd5 25. Qe8+ Rxe8 26. Rxe8#) 25. dxc6 $18) (23... Ncb6 $142) 24. b3 {[%emt 0:07:46]} ({White should try} 24. exd5 $16 exd5 25. b3) 24... Nd6 {[%emt 0:07:12]} (24... Ncb6 $14) 25. exd5 $16 {[%emt 0:02:23]} exd5 {[%emt 0:00:30]} 26. Bb2 {[%emt 0:00:38]} Nf5 {[%emt 0:05:35] [#]} (26... Nxc5 27. dxc5 Nb7 28. Qe5 (28. Be5 Qd8 $14) 28... Qxe5 29. Rxe5 (29. Bxe5 Nxc5 30. Rcd1 Na6 $15) 29... Rxc5 30. Rxc5 Rxc5 31. a4) (26... Re8 $16 27. Qd3 Rxe1 28. Rxe1 Nf8) 27. Qd3 $1 $18 {[%emt 0:03:51]} Nd6 {[%emt 0:08:57]} 28. a4 {[%emt 0:04:06]} Nf6 {[%emt 0:00:35]} 29. Rc2 {[%emt 0:02:16]} Qb6 {[%emt 0:00:22]} 30. Rec1 {[%emt 0:00:45][%cal Be1c1,Bc1c2,Bc2b2][%mdl 32]} Qa7 {[%emt 0:00:19]} 31. g4 {[%emt 0:00:56]} Re8 {[%emt 0:00:04] [#]} (31... R6c7 {was necessary.} 32. Ka2 Nh7) 32. Nd7 $1 {[%emt 0:01:41][%mdl 512]} Rxc2 {[%emt 0:01:00]} 33. Nxf6+ {[%emt 0:00:01]} gxf6 {[%emt 0:00:01]} 34. Rxc2 {[%emt 0:00:37]} (34. Qxc2 Qb6 35. Qd3 Kg7) 34... Qd7 {[%emt 0:01:10]} 35. Qd2 {[%emt 0:01:05][%csl LRa5,LRh6]} Kg7 {[%emt 0:00:00]} 36. Bc1 {[%emt 0:00:20]} (36. Qxa5 Qb7 $18) 36... Qb7 {[%emt 0:00:46]} 37. Qxh6+ {[%emt 0:01:23]} Kg8 {[%emt 0:00:01]} 38. Ka2 {[%emt 0:00:13]} ({Not} 38. Qxf6 Qxb3 39. Rb2 (39. Qg5+ Kf8 $11) 39... Qxa4+ 40. Ra2 Qc4 41. Qg5+ Kf8 42. Qh6+ Ke7 $11) 38... Rb8 {[%emt 0:00:48]} 39. Rb2 {[%emt 0:00:37][%cal Og4g5] g5! would now be deadly.} (39. Qxf6 $2 {leads to mate.} Qxb3+ 40. Ka1 Qb1#) 39... Qe7 {[%emt 0:00:52]} (39... Qc6 $142 40. h4 (40. Qxf6 Qxc1 41. Qxd6 Rxb3 $11) 40... Re8) 40. g5 {[%emt 0:00:47]} Nf5 {[%emt 0:00:10]} 41. Qh3 {[%emt 0:00:12]} Nxd4 {[%emt 0:00:59]} (41... Ng7 $18 42. Qh6 fxg5 43. Bxg5 f6 44. Bxf6 Rb6 45. Bxe7 Rxh6) 42. gxf6 {[%emt 0:00:08]} Qxf6 {[%emt 0:00:30]} 43. Qg3+ {[%emt 0:00:06]} (43. Rg2+ $142 Kf8 44. Bg5 (44. Ba3+ Rb4 $18)) 43... Kh7 {[%emt 0:00:25]} 44. Qxb8 {[%emt 0:01:02]} (44. Rg2 $142 Nf5 45. Qxb8 Ng7 46. Rg3 Qh4 47. Bb2 d4 48. Qf8 Qh6 49. Rg4 (49. Bxd4 Qxh2+ 50. Bb2 Qxg3 $18) (49. Qxf7 Kh8 50. f4 Kh7 51. h3 Kh8 52. Bxd4 Qg6 53. Qxg6 Kg8 54. Qxg7#)) 44... Nc6 {[%emt 0:00:02]} 45. Qf4 {[%emt 0:00:35]} Nb4+ {[%emt 0:00:10]} 46. Ka1 {[%emt 0:00:03]} 1-0

[Event "15th Chennai GM Open 2025"]
[Site "Chennai"]
[Date "2025.01.04"]
[Round "4.12"]
[White "Varun, V."]
[Black "Shyaam Nikhil P"]
[Result "1-0"]
[ECO "B51"]
[WhiteElo "2173"]
[BlackElo "2449"]
[Annotator "TA"]
[PlyCount "75"]
[EventDate "2025.01.02"]
[EventType "swiss"]
[EventCountry "IND"]
[SourceTitle "playchess.com"]
[Source "ChessBase"]
[SourceQuality "1"]
[TimeControl "5400+30"]

{[%evp 11,75,14,33,19,34,26,32,36,37,32,32,21,20,17,20,16,17,16,4,14,45,36,39,-29,-16,-11,-14,-44,-12,-101,-92,-162,-133,-128,-82,-87,308,227,213,227,224,227,229,232,230,221,248,243,242,258,245,195,200,192,189,208,204,202,486,474,487,437,483,478,464,464]} 1. e4 {[%emt 0:00:09]} c5 {[%emt 0:02:08]} 2. Nf3 {[%emt 0:00:07]} d6 {[%emt 0:02:55]} 3. Bb5+ {[%emt 0:00:06]} Nd7 {[%emt 0:01:46]} 4. c3 {[%emt 0:00:07]} Ngf6 {[%emt 0:00:47]} 5. Qe2 {[%emt 0:01:00]} a6 {[%emt 0:01:31]} 6. Ba4 {[%emt 0:00:06][%cal Bb5a4,Ba4c2,Bc2d3][%mdl 32]} Qc7 {[%emt 0:07:08]} 7. O-O {[%emt 0:01:01]} b5 {[%emt 0:00:57][%cal Bb7b5,Bb5b4][%mdl 32]} 8. Bc2 {[%emt 0:00:07]} e5 {[%emt 0:01:02]} 9. d4 {[%emt 0:03:07]} Be7 {[%emt 0:01:27]} 10. a4 {[%emt 0:05:22]} b4 {[%emt 0:02:30]} 11. Bd3 {[%emt 0:10:48]} exd4 {[%emt 0:13:26]} 12. cxd4 {[%emt 0:04:45]} cxd4 {[%emt 0:00:32]} 13. Nxd4 {[%emt 0:01:02]} Nc5 {[%emt 0:00:23]} 14. Bf4 {[%emt 0:03:20]} O-O {[%emt 0:02:21]} 15. Nd2 {[%emt 0:03:56]} Bg4 {[%emt 0:06:31]} 16. f3 {[%emt 0:01:39]} Bd7 {[%emt 0:01:44][%cal Of6h5]} 17. a5 {[%emt 0:06:03]} (17. Rfc1 $14) 17... Nh5 $11 {[%emt 0:06:17]} 18. Be3 {[%emt 0:00:24]} d5 {[%emt 0:00:44]} 19. f4 {[%emt 0:10:41]} (19. exd5 Nf4 20. Bxf4 Qxf4 $11) 19... Nxd3 {[%emt 0:10:30]} (19... dxe4 {simplifies} 20. Bxe4 Nxe4 21. Nxe4 Nf6) 20. Qxh5 {[%emt 0:04:37]} (20. Qxd3 $11 dxe4 21. Nxe4) 20... dxe4 $17 {[%emt 0:04:19]} 21. f5 {[%emt 0:00:43]} (21. Nxe4 $17 Nxb2 22. Rfc1) 21... Qe5 {[%emt 0:02:57][%cal Oe5d5]} (21... Nxb2 22. f6 gxf6 (22... Bxf6 23. Rxf6 Qc3 24. Qg5 $14) 23. Rac1 $14) 22. Nc4 {[%emt 0:00:30][%cal Bd2c4,Bc4b6,Bb6d7,Bd7f8][%mdl 32]} Qf6 {[%emt 0:00:23]} (22... Qc5 $142 23. b3 Bb5) 23. Nb6 {[%emt 0:00:22] [#]} Qd6 $2 {[%emt 0:02:08][%mdl 8192]} 24. f6 {[%emt 0:05:31]} Bxf6 {[%emt 0:01:27]} 25. Rxf6 {[%emt 0:00:34]} Qxf6 {[%emt 0:06:14]} 26. Nxd7 {[%emt 0:00:08] Excellent horsemanship.} Qg6 {[%emt 0:00:08]} 27. Qxg6 {[%emt 0:00:32]} hxg6 {[%emt 0:00:05]} 28. Nxf8 {[%emt 0:00:05]} Kxf8 {[%emt 0:00:25]} 29. b3 {[%emt 0:03:19]} Rc8 {[%emt 0:00:12]} 30. Ra2 {[%emt 0:00:17]} Rc5 {[%emt 0:01:45]} 31. g3 {[%emt 0:10:11]} Ke7 {[%emt 0:00:17]} 32. Rc2 {[%emt 0:02:12]} Kd6 {[%emt 0:00:44] Prevents Nc6} 33. Rxc5 {[%emt 0:00:59]} Nxc5 {[%emt 0:00:05]} 34. Kf2 {[%emt 0:01:41] and Bd2 should not be overlooked} Nb7 $2 {[%emt 0:00:09]} (34... Kd5 {was necessary.} 35. Ke2 Nb7) 35. Bd2 $18 {[%emt 0:01:25]} Kd5 {[%emt 0:00:06]} 36. Ke3 {[%emt 0:00:20]} Nxa5 {[%emt 0:00:59]} 37. Bxb4 {[%emt 0:00:27]} Nb7 {[%emt 0:00:05]} 38. Bf8 {[%emt 0:00:35]} 1-0

[Event "15th Chennai GM Open 2025"]
[Site "Chennai"]
[Date "2025.01.04"]
[Round "4.13"]
[White "Sri Sai Baswanth P"]
[Black "Agibileg, Uurtsaikh"]
[Result "1/2-1/2"]
[ECO "E63"]
[WhiteElo "2161"]
[BlackElo "2392"]
[Annotator "RC"]
[PlyCount "68"]
[EventDate "2025.01.02"]
[EventType "swiss"]
[EventCountry "IND"]
[SourceTitle "playchess.com"]
[Source "ChessBase"]
[SourceQuality "1"]
[TimeControl "5400+30"]

1. c4 {[%emt 0:00:05]} Nf6 {[%emt 0:00:39]} 2. g3 {[%emt 0:00:20]} g6 {[%emt 0:00:31]} 3. d4 {[%emt 0:00:12]} Bg7 {[%emt 0:00:35]} 4. Bg2 {[%emt 0:00:08]} O-O {[%emt 0:00:34]} 5. Nf3 {[%emt 0:00:11]} d6 {[%emt 0:00:35]} 6. Nc3 {[%emt 0:00:48]} Nc6 {[%emt 0:00:22]} 7. O-O {[%emt 0:01:05]} a6 {[%emt 0:00:17]} 8. b3 {[%emt 0:00:10]} Rb8 {[%emt 0:00:09]} 9. d5 {[%emt 0:00:53]} Na5 {[%emt 0:00:10]} 10. Bg5 {[%emt 0:00:16]} c5 {[%emt 0:00:59]} 11. dxc6 {[%emt 0:00:17]} Nxc6 {[%emt 0:00:09]} 12. Rc1 {[%emt 0:00:12]} Bd7 {[%emt 0:00:10]} 13. Nd5 {[%emt 0:09:00]} Nxd5 {[%emt 0:01:55]} 14. cxd5 {[%emt 0:00:15]} Ne5 {[%emt 0:00:28]} 15. Nxe5 {[%emt 0:02:48]} Bxe5 {[%emt 0:00:08]} 16. Qd2 {[%emt 0:00:23]} Bf6 {[%emt 0:03:32]} 17. Bxf6 {[%emt 0:01:18]} exf6 {[%emt 0:00:08]} 18. Qb4 {[%emt 0:06:47]} Bb5 {[%emt 0:08:17]} 19. Bf3 {[%emt 0:05:50]} Re8 {[%emt 0:04:39]} 20. Rc2 {[%emt 0:00:45]} Re7 {[%emt 0:02:54]} 21. Rfc1 {[%emt 0:01:44]} Kg7 {[%emt 0:01:54]} 22. Qd4 {[%emt 0:08:44]} a5 {[%emt 0:01:42]} 23. Bg4 {[%emt 0:03:17]} Bd7 {[%emt 0:04:19]} 24. Bxd7 {[%emt 0:04:39]} Qxd7 {[%emt 0:01:18]} 25. Qb6 {[%emt 0:00:55]} Qd8 {[%emt 0:00:49]} 26. Qxd8 {[%emt 0:01:04]} Rxd8 {[%emt 0:00:05]} 27. e3 {[%emt 0:00:30]} f5 {[%emt 0:01:56]} 28. Rc7 {[%emt 0:02:12]} Kf6 {[%emt 0:06:59]} 29. Rxe7 {[%emt 0:10:09]} Kxe7 {[%emt 0:00:08]} 30. Rc7+ {[%emt 0:00:02]} Rd7 {[%emt 0:00:08]} 31. Rc8 {[%emt 0:00:05]} Rd8 {[%emt 0:00:14]} 32. Rc7+ {[%emt 0:00:02]} Rd7 {[%emt 0:00:09]} 33. Rc8 {[%emt 0:00:08]} Rd8 {[%emt 0:00:44]} 34. Rc7+ {[%emt 0:00:07]} Rd7 {[%emt 0:00:08]} 1/2-1/2